bitfinex/quotes_ETHUSD_20241001
["timestamp","ask_amount","ask_price","bid_price","bid_amount"]
[1727826433720,0.84665628,2455.7,2455.5,3.25797]
[1727826433920,0.84665628,2456.0,2455.8,3.25749]
[1727826434104,4.61573277,2456.2,2456.0,3.25732]
[1727826434105,0.84665628,2456.2,2456.0,3.25732]
[1727826434293,2.11872459,2456.4,2456.2,3.25706]
[1727826434294,0.84665628,2456.4,2456.2,3.25706]
[1727826434528,0.84665628,2456.6,2456.2,3.73634925]
[1727826434727,2.13442021,2456.9,2456.3,0.67363493]
[1727826434728,0.84665628,2456.9,2456.3,0.67363493]
[1727826434911,0.84665628,2456.9,2456.3,3.25683]
[1727826435287,0.84665628,2456.9,2456.4,3.25676]
[1727826435554,4.10273628,2457.0,2456.4,3.25676]
[1727826435707,4.10273628,2457.0,2456.3,3.25683]
[1727826435913,4.10273628,2457.0,2456.3,3.0]
[1727826435914,3.25635,2456.8,2456.3,3.0]
[1727826436107,3.25635,2456.8,2456.3,3.25692]
[1727826436641,0.61607207,2456.9,2456.3,3.25692]
[1727826436642,0.61607207,2456.9,2456.4,3.25679]
[1727826436809,3.25608,2457.0,2456.5,3.25666]
[1727826437521,3.25608,2457.0,2456.3,3.25685]
[1727826438024,3.25627,2456.8,2456.2,3.25699]
[1727826438226,0.788,2456.7,2456.2,3.25699]
[1727826439452,0.788,2456.7,2456.1,3.2571]
[1727826439453,6.5132,2456.6,2456.1,3.2571]
[1727826439660,3.661027,2456.6,2456.1,3.2571]
[1727826439825,0.404427,2456.6,2456.2,3.25705]
[1727826440216,0.788,2456.7,2456.3,3.25691]
[1727826440468,4.04409,2457.0,2456.5,3.25666]
[1727826440615,4.04409,2457.0,2456.4,3.25675]
[1727826441318,0.788,2457.0,2456.5,3.25657]
[1727826441509,0.788,2457.0,2456.6,3.2565]
[1727826441727,0.788,2457.3,2456.8,3.25618]
[1727826441932,0.788,2457.6,2456.8,0.55]
[1727826442223,4.04321,2457.6,2457.0,3.25591]
[1727826442785,0.788,2457.6,2457.1,3.25582]
[1727826443051,0.788,2457.6,2457.2,3.25571]
[1727826443948,7.29854,2457.6,2457.0,3.25591]
[1727826444161,8.028394,2457.6,2457.0,3.25591]
[1727826444916,3.25548,2457.4,2456.8,3.25617]
[1727826445116,6.51102,2457.4,2456.8,3.25617]
[1727826445656,0.788,2457.2,2456.6,3.25641]
[1727826445810,0.788,2457.2,2456.5,0.8316]
[1727826446017,0.788,2457.2,2457.0,3.25598]
[1727826446257,6.25496,2457.8,2457.2,3.2557]
[1727826446462,0.788,2457.9,2457.4,3.25546]
[1727826446701,4.04288,2457.9,2457.4,3.25546]
[1727826446919,8.02754,2457.9,2457.4,3.25546]
[1727826447077,3.25497,2457.8,2457.2,4.08725]
[1727826447394,3.25497,2457.8,2457.2,3.25565]
[1727826447702,4.77263,2457.9,2457.2,3.25565]
[1727826448003,3.25507,2457.7,2457.2,6.51131]
[1727826448167,3.25507,2457.7,2457.2,7.227563]
[1727826448572,3.25507,2457.7,2457.2,3.971903]
[1727826448962,3.25522,2457.6,2457.0,3.90713]
[1727826449161,0.7702,2457.5,2457.0,7.16306]
[1727826449459,0.7702,2457.5,2457.1,3.25578]
[1727826449460,0.38619647,2457.4,2457.1,3.25578]
[1727826450185,0.38619647,2457.4,2457.0,3.90713]
[1727826450370,0.38619647,2457.4,2456.9,0.8316]
[1727826450569,0.38619647,2457.4,2457.0,3.25599]
[1727826453599,3.64167647,2457.4,2457.0,3.25599]
[1727826456576,0.38619647,2457.4,2457.2,3.25564]
[1727826456787,3.25545,2457.5,2457.0,3.25593]
[1727826457010,4.41180354,2457.4,2456.8,4.02589]
[1727826457219,4.41180354,2457.4,2456.9,3.25613]
[1727826457371,1.15623354,2457.4,2456.9,3.25613]
[1727826457576,1.15623354,2457.4,2457.0,3.25596]
[1727826457773,0.38603354,2457.4,2457.3,3.2556]
[1727826458008,4.02536,2457.7,2457.3,3.2556]
[1727826458218,0.38603354,2457.4,2457.3,3.2556]
[1727826458422,0.7702,2457.7,2457.3,3.2556]
[1727826458720,0.38603354,2457.4,2457.3,3.2556]
[1727826459011,0.38603354,2457.4,2457.2,3.25573]
[1727826459218,4.0253,2457.7,2457.2,3.25573]
[1727826459379,0.38603354,2457.3,2457.2,3.25573]
[1727826459583,4.0253,2457.7,2457.2,3.25573]
[1727826459784,0.38603354,2457.6,2457.2,6.5114]
[1727826460511,0.38603354,2457.6,2456.9,0.728202]
[1727826460719,0.38603354,2457.6,2457.0,3.25593]
[1727826460720,0.7702,2457.4,2457.0,3.25593]
[1727826461030,3.25606,2457.0,2456.5,3.25664]
[1727826461208,4.02604,2457.2,2455.9,3.25736]
[1727826461209,0.7702,2456.4,2455.9,3.25736]
[1727826461394,0.7702,2456.4,2455.9,3.25735]
[1727826461659,0.7702,2456.4,2456.0,3.2572]
[1727826461828,0.7702,2456.4,2456.1,3.25716]
[1727826462156,0.7702,2456.4,2456.0,6.51448]
[1727826462157,0.38603354,2456.3,2456.0,6.51448]
[1727826462365,0.38603354,2456.3,2456.1,3.25719]
[1727826463669,0.38603354,2456.3,2456.0,7.242898]
[1727826463825,0.38603354,2456.3,2456.0,3.985648]
[1727826464030,0.38603354,2456.3,2456.0,0.728418]
[1727826464258,0.38603354,2456.3,2455.8,4.0272]
[1727826464259,0.38603354,2456.3,2455.9,3.25745]
[1727826466639,0.38603354,2456.3,2456.0,3.25729]
[1727826467835,0.38603354,2456.3,2456.1,3.25719]
[1727826468235,0.38603354,2456.3,2456.0,1.3601]
[1727826468474,0.38603354,2456.3,2456.2,3.25706]
[1727826468772,0.38500708,2456.3,2456.2,4.044489]
[1727826468958,4.08816,2456.7,2456.0,4.06734]
[1727826469151,0.38500708,2456.6,2456.0,3.25724]
[1727826469357,3.25667,2456.5,2456.0,3.25724]
[1727826469542,4.08856,2456.4,2455.9,6.51473]
[1727826469739,0.38500708,2456.3,2455.9,3.25734]
[1727826469940,0.38500708,2456.3,2456.1,3.25717]
[1727826470171,4.08824,2456.6,2456.1,6.59571961]
[1727826470476,0.38497688,2456.5,2456.1,3.33854961]
[1727826470867,0.38497688,2456.5,2456.0,4.06741]
[1727826471380,0.38497688,2456.5,2456.1,3.25719]
[1727826472150,4.41463257,2456.5,2455.9,3.25736]
[1727826472336,4.41463257,2456.5,2456.0,3.2573]
[1727826472788,4.41463257,2456.5,2456.2,3.25699]
[1727826472789,0.38497688,2456.5,2456.2,3.25699]
[1727826472975,0.38497688,2456.5,2455.8,0.8101]
[1727826472976,0.8317,2457.1,2456.3,4.06701]
[1727826473138,3.62818819,2457.0,2456.4,3.2567]
[1727826473356,3.2562,2456.9,2456.4,3.2567]
[1727826473758,0.37211819,2456.8,2456.4,3.2567]
[1727826473987,0.37211819,2456.8,2456.7,3.2564]
[1727826474140,0.8317,2457.1,2456.7,3.2564]
[1727826474340,0.37211819,2457.0,2456.7,3.2564]
[1727826474583,0.37211819,2457.0,2456.8,3.25626]
[1727826474890,0.37211819,2457.0,2456.9,3.25613]
[1727826475056,0.37211819,2457.0,2456.8,3.25626]
[1727826475239,3.25561,2457.3,2456.8,3.907531]
[1727826475439,0.37211819,2456.9,2456.8,7.163701]
[1727826475686,3.25561,2457.3,2456.8,0.651271]
[1727826475888,0.37211819,2456.9,2456.6,0.8101]
[1727826476043,3.25581,2457.2,2456.6,0.8101]
[1727826476044,3.25591,2457.1,2456.6,0.8101]
[1727826476350,0.8317,2456.9,2456.4,3.25676]
[1727826476553,0.37211819,2456.8,2456.4,3.25676]
[1727826479655,0.37211819,2456.8,2456.5,3.25666]
[1727826479848,0.37211819,2456.8,2456.3,4.0669]
[1727826480052,3.62839819,2456.8,2456.3,3.2568]
[1727826480251,0.8317,2456.7,2456.2,3.25705]
[1727826480465,3.25659,2456.6,2456.1,3.25706]
[1727826480686,3.62894576,2456.6,2456.1,3.25706]
[1727826480859,3.25667,2456.5,2456.0,3.25731]
[1727826481293,3.25667,2456.5,2456.1,3.25716]
[1727826481518,0.37235576,2456.4,2456.1,3.25716]
[1727826481798,3.25667,2456.5,2456.0,3.25731]
[1727826482013,3.25667,2456.5,2455.4,0.84865133]
[1727826482014,0.8317,2456.1,2455.6,3.25776]
[1727826482217,0.8317,2456.1,2455.5,3.25793]
[1727826482504,0.8317,2456.1,2455.3,3.25824]
[1727826482505,0.8317,2456.1,2456.0,3.25732]
[1727826482712,0.8317,2456.4,2456.0,3.25732]
[1727826482925,4.86538733,2456.4,2456.0,3.25732]
[1727826483409,4.86538733,2456.4,2455.9,3.25741]
[1727826483701,4.0885,2456.4,2455.9,3.25741]
[1727826483902,7.34542,2456.4,2455.9,3.25741]
[1727826484198,4.0885,2456.4,2455.9,3.25741]
[1727826484573,3.25654,2456.6,2456.1,3.25718]
[1727826484904,0.8317,2456.7,2456.4,3.25672]
[1727826485101,0.8317,2456.7,2456.3,3.25686]
[1727826485306,0.8317,2456.9,2456.6,3.25653]
[1727826485607,4.08785,2456.9,2456.4,6.51338]
[1727826485963,0.8317,2456.9,2456.5,3.25664]
[1727826486189,0.8317,2456.9,2456.6,3.25652]
[1727826486362,4.08784,2456.9,2456.4,3.25666]
[1727826486593,0.8317,2456.9,2456.5,3.25661]
[1727826487062,0.8317,2456.9,2456.4,3.663336]
[1727826487063,4.08786,2456.9,2456.4,3.663336]
[1727826487266,7.82028549,2456.9,2456.4,3.25666]
[1727826487605,3.25634,2456.8,2456.3,3.25689]
[1727826488599,7.82028549,2456.9,2456.4,3.25678]
[1727826489667,3.25636,2456.8,2456.3,3.25688]
[1727826490304,4.08831,2456.6,2456.1,3.25717]
[1727826490612,0.8317,2456.6,2456.2,3.25705]
[1727826490976,4.10281628,2456.9,2456.4,3.25679]
[1727826491170,0.8317,2456.8,2456.4,3.25679]
[1727826491652,4.08798,2456.8,2456.4,3.25679]
[1727826492161,5.28029418,2456.8,2456.3,3.25692]
[1727826492469,4.08832,2456.6,2456.1,3.25713]
[1727826492773,0.8317,2456.6,2456.1,3.25713]
[1727826492977,6.98918549,2456.5,2455.6,3.7925]
[1727826493180,0.7893,2456.4,2455.8,3.25753]
[1727826493771,4.04616,2456.4,2455.8,3.25753]
[1727826493967,4.04616,2456.4,2455.9,3.25745]
[1727826493968,3.25694,2456.3,2455.9,3.25745]
[1727826494391,0.37246544,2456.2,2455.9,3.25745]
[1727826494576,3.25694,2456.3,2455.9,3.25745]
[1727826494915,3.25694,2456.3,2455.8,3.25756]
[1727826494916,0.37246544,2456.2,2455.8,3.25756]
[1727826495111,0.37246544,2456.2,2455.5,3.25786]
[1727826495112,7.77899549,2456.1,2455.5,3.25786]
[1727826495269,0.37246544,2456.2,2455.3,0.7925]
[1727826495270,3.73242549,2455.7,2455.3,3.25817]
[1727826495472,0.7893,2455.6,2455.4,3.25811]
[1727826495980,0.37246544,2455.5,2455.4,3.25811]
[1727826496381,0.37246544,2455.5,2455.3,3.25823]
[1727826498066,0.37246544,2455.5,2455.4,3.25812]
[1727826498274,0.37246544,2455.5,2455.4,7.60062]
[1727826498515,1.69331256,2456.6,2455.4,7.60062]
[1727826498516,1.63595628,2456.7,2456.3,3.25693]
[1727826498808,0.37246544,2456.6,2456.4,3.25671]
[1727826499102,0.37246544,2456.6,2456.2,3.25697]
[1727826499262,0.37246544,2456.6,2456.3,3.25692]
[1727826499464,4.10279628,2456.9,2456.4,3.25678]
[1727826499690,0.37246544,2456.5,2456.4,3.25672]
[1727826499915,3.25614,2456.9,2456.4,6.51344]
[1727826500066,0.37246544,2456.5,2456.4,6.51344]
[1727826500267,3.25614,2456.9,2456.4,6.51344]
[1727826500498,0.37246544,2456.5,2456.4,3.25672]
[1727826500706,3.25614,2456.9,2456.4,6.51344]
[1727826500880,0.37246544,2456.5,2456.4,3.25672]
[1727826501077,4.19794307,2456.9,2456.4,3.25672]
[1727826501296,0.37246544,2456.5,2456.4,6.51345]
[1727826501485,3.25614,2456.9,2456.4,6.51345]
[1727826501693,0.37246544,2456.5,2456.4,6.51345]
[1727826501994,4.89204628,2457.0,2456.5,3.25654]
[1727826502883,4.04539,2457.0,2456.5,3.25654]
[1727826503288,3.25633,2456.8,2456.2,3.25696]
[1727826503486,0.7893,2456.6,2456.2,3.25696]
[1727826504811,0.7893,2456.6,2456.2,6.51393]
[1727826504983,0.7893,2456.6,2456.2,3.25696]
[1727826505386,0.7893,2456.6,2456.2,6.51394]
[1727826505585,2.45082491,2456.6,2456.0,3.25724]
[1727826505817,0.7893,2456.6,2456.2,3.257]
[1727826506496,4.04589,2456.6,2456.1,3.25718]
[1727826506721,0.7893,2456.6,2456.1,3.25718]
[1727826506887,4.89251628,2456.6,2456.1,3.25718]
[1727826507382,4.89251628,2456.6,2456.3,3.25692]
[1727826507383,1.63595628,2456.6,2456.3,3.25692]
[1727826507589,0.7893,2456.6,2456.3,3.25692]
[1727826508111,1.63595628,2456.6,2456.1,3.25718]
[1727826508413,0.7893,2456.6,2456.3,3.25681]
[1727826508774,0.84665628,2456.7,2456.6,3.25653]
[1727826508978,0.7837,2457.1,2456.5,3.25666]
[1727826508979,0.84665628,2457.2,2456.8,3.25624]
[1727826509223,1.69331256,2457.4,2456.8,3.25624]
[1727826509224,0.84665628,2457.4,2457.1,3.25578]
[1727826509436,0.37242281,2457.3,2457.1,0.06255529]
[1727826510278,4.88571628,2457.5,2457.1,3.31839529]
[1727826510502,0.37242281,2457.2,2457.1,0.06255529]
[1727826510830,0.84665628,2457.7,2457.4,3.25547]
[1727826510984,0.84665628,2457.8,2457.4,3.25547]
[1727826511510,0.84665628,2457.7,2457.4,3.25547]
[1727826511673,0.84665628,2457.7,2457.3,3.2556]
[1727826511874,0.7837,2457.6,2456.8,0.7768]
[1727826512113,4.10213628,2457.4,2456.8,0.7768]
[1727826512381,0.84665628,2457.5,2457.0,3.2559]
[1727826512613,2.41676659,2457.5,2457.0,3.2559]
[1727826513179,5.67212659,2457.5,2457.0,3.2559]
[1727826515024,4.88565628,2457.6,2456.9,3.256]
[1727826515221,3.25548,2457.4,2456.9,3.256]
[1727826515515,3.25548,2457.4,2456.9,6.51204]
[1727826515905,3.25548,2457.4,2456.9,3.256]
[1727826516298,4.88559628,2457.6,2457.0,3.25599]
[1727826516492,3.25542,2457.5,2456.9,3.256]
[1727826516689,0.84665628,2457.5,2456.8,0.7768]
[1727826516904,0.7837,2457.6,2457.3,3.25552]
[1727826517129,0.7837,2457.6,2457.3,6.51105]
[1727826517332,0.84665628,2457.9,2457.6,3.2551]
[1727826517494,0.84665628,2457.9,2457.5,3.25522]
[1727826517495,0.84665628,2458.2,2457.7,0.08136374]
[1727826517832,3.25429,2458.3,2457.9,0.7768]
[1727826517995,3.25429,2458.3,2457.6,3.25509]
[1727826517996,3.25454,2458.1,2457.6,4.03189]
[1727826518219,4.03821,2458.2,2457.7,3.25507]
[1727826518878,4.03818,2458.2,2457.7,3.25507]
[1727826519545,3.25458,2458.1,2457.6,4.03189]
[1727826520642,3.25475,2458.0,2457.5,3.25533]
[1727826521209,3.25458,2458.1,2457.5,4.3491925]
[1727826521407,3.25458,2458.1,2457.7,3.25505]
[1727826521641,4.03814,2458.2,2457.7,3.25505]
[1727826522942,4.03814,2458.2,2457.7,3.255]
[1727826524306,0.37323882,2458.1,2457.7,3.255]
[1727826524504,0.37323882,2458.1,2457.7,4.01541225]
[1727826525362,0.37323882,2458.1,2457.8,0.86636274]
[1727826525510,0.37323882,2458.1,2458.0,3.25467]
[1727826525768,3.25422,2458.4,2458.0,0.08135263]
[1727826525938,3.25422,2458.4,2457.8,0.785]
[1727826525939,0.37323882,2458.1,2457.8,0.785]
[1727826526140,3.25422,2458.4,2457.9,0.403999]
[1727826526450,6.50847,2458.4,2457.9,3.658799]
[1727826526632,6.50847,2458.4,2457.8,0.785]
[1727826526633,3.62756882,2458.3,2457.8,3.25493]
[1727826526949,3.25442,2458.2,2457.5,5.1341025]
[1727826527155,3.25451,2458.2,2457.7,3.25506]
[1727826527327,3.25451,2458.2,2457.5,5.1341325]
[1727826527328,0.37357965,2458.1,2457.5,5.1341325]
[1727826527515,3.62821965,2458.1,2457.6,3.25518]
[1727826527950,3.62821965,2458.1,2457.5,5.1341325]
[1727826527951,3.2548,2458.0,2457.5,5.1341325]
[1727826528111,3.2548,2458.0,2457.5,8.3894025]
[1727826528312,3.2548,2458.0,2457.6,3.25519]
[1727826528611,0.37357965,2457.9,2457.5,5.1341325]
[1727826529071,0.37357965,2457.9,2457.6,0.57852375]
[1727826530325,0.37357965,2457.9,2457.5,4.3491225]
[1727826531341,0.37357965,2457.9,2457.5,7.6043725]
[1727826531655,0.37357965,2457.9,2457.5,4.3491125]
[1727826532318,0.37357965,2457.9,2457.5,7.6043925]
[1727826532853,0.37357965,2457.9,2457.5,1.0938625]
[1727826533026,0.814,2457.8,2457.4,3.25539]
[1727826533351,0.814,2457.8,2457.5,3.25533]
[1727826533553,0.37357965,2457.7,2457.5,3.25533]
[1727826533933,0.814,2457.8,2457.5,3.25533]
[1727826534125,0.37357965,2457.6,2457.5,3.25533]
[1727826534323,0.37357965,2457.6,2457.5,4.039907]
[1727826534527,4.06868,2458.0,2457.5,4.039907]
[1727826534918,0.37357965,2457.9,2457.6,3.2552]
[1727826535646,0.37357965,2457.9,2457.5,0.784577]
[1727826535647,0.37357965,2457.9,2457.5,4.039897]
[1727826535961,0.37357965,2457.9,2457.5,3.25532]
[1727826536737,0.37357965,2457.9,2457.6,3.25519]
[1727826537334,0.37357965,2457.9,2457.4,0.55]
[1727826537335,3.62844965,2457.9,2457.4,3.25537]
[1727826537655,3.62844965,2457.9,2457.5,3.25533]
[1727826539816,3.62844965,2457.9,2457.3,4.04049]
[1727826539817,3.25494,2457.8,2457.3,3.25549]
[1727826540057,0.76972097,2457.8,2457.4,3.25546]
[1727826540353,0.8103,2457.6,2457.1,3.25579]
[1727826540565,3.25537,2457.5,2457.1,3.25579]
[1727826540767,4.07311754,2457.5,2456.9,3.25605]
[1727826540928,3.2557,2457.3,2456.7,6.51259]
[1727826541344,0.37367101,2457.2,2456.7,6.51259]
[1727826541558,0.37367101,2457.2,2456.7,3.25629]
[1727826541559,3.62943101,2457.2,2456.7,3.25629]
[1727826541771,4.39897411,2457.2,2456.7,3.25629]
[1727826541934,0.8103,2457.1,2456.5,3.25655]
[1727826542134,0.8103,2457.1,2456.8,3.25626]
[1727826542320,0.37350055,2457.0,2456.8,3.25626]
[1727826542519,0.37350055,2457.0,2456.6,3.25642]
[1727826542752,0.37350055,2457.0,2456.7,3.25637]
[1727826542957,0.37350055,2457.0,2456.6,6.51287]
[1727826543464,0.37350055,2457.0,2456.6,3.25642]
[1727826543633,0.81745461,2457.0,2456.4,3.2567]
[1727826543959,0.81745461,2457.0,2456.2,3.25697]
[1727826543960,0.8103,2456.7,2456.2,3.25697]
[1727826544175,0.8103,2456.7,2456.3,3.25692]
[1727826544463,0.8103,2456.7,2456.4,3.25672]
[1727826544464,0.37336659,2456.6,2456.4,3.25672]
[1727826545046,0.37336659,2456.6,2456.2,6.5139]
[1727826545246,0.37336659,2456.6,2456.3,3.25689]
[1727826546870,0.37336659,2456.6,2456.2,3.25694]
[1727826547439,4.39964925,2456.6,2456.0,3.25722]
[1727826547634,4.39964925,2456.6,2455.8,3.25751]
[1727826547635,3.2569,2456.4,2455.8,3.25751]
[1727826547824,6.51383,2456.4,2455.8,3.25751]
[1727826548023,4.06743,2456.2,2455.6,6.51549]
[1727826548244,4.06743,2456.2,2455.6,7.243259]
[1727826548437,0.8103,2456.2,2455.7,3.25766]
[1727826548665,0.37252025,2456.1,2455.9,3.25745]
[1727826548832,0.37252025,2456.1,2455.8,0.08143012]
[1727826549039,0.37252025,2456.1,2455.7,3.25766]
[1727826549480,0.37252025,2456.1,2455.7,6.51531]
[1727826550092,0.37252025,2456.1,2455.8,3.25752]
[1727826550581,0.37252025,2456.1,2455.9,3.25745]
[1727826552245,0.37252025,2456.1,2455.8,3.25758]
[1727826552761,0.37252025,2456.1,2455.7,3.25765]
[1727826553897,0.37252025,2456.1,2455.8,3.25759]
[1727826554046,0.37252025,2456.1,2455.5,3.25787]
[1727826554047,0.81649528,2456.1,2455.5,3.25787]
[1727826554242,0.81649528,2456.1,2455.3,3.25816]
[1727826554243,3.73314152,2456.0,2455.3,3.25816]
[1727826554443,3.25762,2455.8,2455.3,3.25816]
[1727826554944,0.3721486,2455.7,2455.3,3.25816]
[1727826555145,0.3721486,2455.7,2455.4,3.25805]
[1727826555366,4.01636,2455.9,2455.4,3.25805]
[1727826555715,1.90398166,2455.9,2455.5,3.25799]
[1727826555908,0.3721486,2455.8,2455.5,3.25799]
[1727826556285,0.3721486,2455.8,2455.7,3.25772]
[1727826557108,0.7589,2456.1,2455.8,3.25752]
[1727826557290,3.25694,2456.3,2455.8,3.25752]
[1727826557291,4.01584,2456.3,2455.8,3.25752]
[1727826557496,5.41642615,2456.3,2455.8,3.25752]
[1727826557696,2.15948615,2456.3,2455.9,3.25743]
[1727826558109,0.7589,2456.3,2456.0,3.25729]
[1727826558284,0.7589,2456.5,2456.2,3.25699]
[1727826558472,7.38,2456.6,2456.1,0.78609797]
[1727826558676,4.01533,2456.7,2456.2,3.25702]
[1727826558909,4.01533,2456.7,2455.8,3.25753]
[1727826558910,3.25681,2456.4,2455.9,3.25737]
[1727826559088,3.25681,2456.4,2455.7,4.01593]
[1727826559436,4.49204152,2456.5,2455.7,0.7583]
[1727826559631,4.01556,2456.5,2456.0,3.25721]
[1727826559786,5.11609015,2456.5,2456.0,3.25721]
[1727826561814,5.11609015,2456.5,2455.9,3.25733]
[1727826561985,3.25679,2456.4,2455.9,3.25733]
[1727826562185,3.25699,2456.3,2455.8,3.25758]
[1727826563315,3.25679,2456.4,2455.9,3.25737]
[1727826565491,3.25694,2456.3,2455.8,3.25758]
[1727826565695,4.35756715,2456.3,2455.8,3.25747]
[1727826566093,1.10057715,2456.3,2455.9,3.25742]
[1727826566502,3.25679,2456.4,2455.9,3.25742]
[1727826566503,6.5137,2456.4,2455.9,3.25742]
[1727826566819,3.25679,2456.4,2455.9,3.25742]
[1727826568697,6.51367,2456.4,2455.9,3.25742]
[1727826568892,3.25679,2456.4,2455.9,3.25742]
[1727826569418,0.37191101,2456.3,2455.9,3.25742]
[1727826570105,0.37191101,2456.3,2456.0,3.25732]
[1727826571118,0.37191101,2456.3,2455.7,0.7583]
[1727826571336,0.7589,2456.5,2456.2,3.25706]
[1727826571516,0.3719476,2456.4,2456.2,3.25706]
[1727826572197,0.3719476,2456.4,2456.3,3.25693]
[1727826572831,0.7755,2456.7,2456.3,3.25693]
[1727826573026,0.3719476,2456.4,2456.3,3.25693]
[1727826573234,0.7755,2456.7,2456.3,3.25693]
[1727826573403,0.3719476,2456.4,2456.3,3.25693]
[1727826573599,0.7755,2456.7,2456.3,3.25693]
[1727826573796,0.3719476,2456.4,2456.3,3.25693]
[1727826574020,0.7755,2456.7,2456.3,3.25693]
[1727826574490,0.7755,2456.7,2456.4,3.25672]
[1727826574835,0.3719476,2456.6,2456.3,3.25693]
[1727826575188,0.3719476,2456.6,2456.3,6.51378]
[1727826575717,0.3719476,2456.6,2456.3,3.25685]
[1727826576433,0.3719476,2456.6,2456.4,3.2567]
[1727826581740,0.3719476,2456.6,2456.3,3.25685]
[1727826582540,0.3719476,2456.6,2456.4,3.25678]
[1727826582705,0.3719476,2456.6,2456.4,3.25679]
[1727826584141,0.3719476,2456.6,2456.3,3.25685]
[1727826584307,0.3719476,2456.6,2456.3,6.5137]
[1727826585426,0.3719476,2456.6,2456.4,3.25677]
[1727826585627,0.3719476,2456.6,2456.5,4.14203881]
[1727826585841,0.7971,2456.9,2456.3,3.99232158]
[1727826586141,0.7971,2456.9,2456.1,3.25719]
[1727826586142,0.7971,2456.5,2456.1,3.25719]
[1727826586339,1.41411407,2456.5,2456.1,3.25719]
[1727826586542,1.41411407,2456.5,2456.2,3.25706]
[1727826586543,0.7971,2456.5,2456.2,3.25706]
[1727826586740,0.37227658,2456.4,2456.2,3.25706]
[1727826588637,1.21893286,2456.4,2456.2,3.25706]
[1727826589860,1.21893286,2456.4,2456.2,3.25697]
[1727826590374,0.37227658,2456.4,2456.2,3.25697]
[1727826591060,1.21893286,2456.4,2456.2,3.25697]
[1727826591267,0.37227658,2456.4,2456.2,3.25697]
[1727826592367,0.37227658,2456.4,2456.2,6.51396]
[1727826592739,0.37227658,2456.4,2456.2,3.25697]
[1727826593350,1.21893286,2456.4,2456.2,3.25697]
[1727826594872,0.37227658,2456.4,2456.2,3.25697]
[1727826595172,1.21893286,2456.4,2456.3,3.25693]
[1727826595537,0.37227658,2456.4,2456.3,3.25693]
[1727826595763,1.21893286,2456.4,2456.3,3.25693]
[1727826596073,0.37227658,2456.4,2456.3,3.25693]
[1727826596376,1.21893286,2456.4,2456.3,3.25693]
[1727826597079,1.21893286,2456.4,2456.1,3.25708]
[1727826597440,0.84665628,2456.3,2456.1,3.25708]
[1727826597759,0.37219131,2456.2,2456.0,3.25719]
[1727826597970,0.37219131,2456.2,2456.1,3.25719]
[1727826598146,0.84665628,2456.3,2456.1,3.25719]
[1727826598352,0.37219131,2456.2,2456.1,3.25719]
[1727826598538,0.84665628,2456.3,2456.1,3.25719]
[1727826598738,0.37217303,2456.2,2456.1,3.25719]
[1727826599063,0.84665628,2456.3,2456.1,3.25719]
[1727826599268,0.37217303,2456.2,2456.1,3.25719]
[1727826599651,0.84665628,2456.3,2456.1,3.25719]
[1727826599855,0.37217303,2456.2,2456.1,3.25719]
[1727826600179,0.84665628,2456.4,2456.1,3.25719]
[1727826600384,0.37217303,2456.2,2456.0,3.25731]
[1727826600581,0.84665628,2456.3,2456.0,3.25731]
[1727826600794,0.37217303,2456.1,2456.0,3.25731]
[1727826601028,0.84665628,2456.4,2456.1,3.25718]
[1727826601324,0.84665628,2456.5,2456.4,3.25679]
[1727826601465,0.84665628,2456.6,2456.5,3.25666]
[1727826601661,2.1350308,2457.0,2456.6,3.25653]
[1727826601662,0.84665628,2456.9,2456.6,3.25653]
[1727826601864,0.84665628,2457.1,2457.0,3.256]
[1727826602090,1.69331256,2457.4,2457.1,4.08417]
[1727826602091,0.84665628,2457.3,2457.1,4.08417]
[1727826602407,0.84665628,2457.4,2457.3,3.2556]
[1727826602574,0.84665628,2457.4,2457.2,3.25573]
[1727826602768,0.84665628,2457.4,2457.3,3.2556]
[1727826603855,1.26998442,2457.5,2457.3,3.2556]
[1727826603856,0.84665628,2457.5,2457.3,3.2556]
[1727826604174,0.84665628,2457.6,2457.3,3.2556]
[1727826604375,0.84665628,2457.6,2457.3,6.511]
[1727826604570,0.84665628,2457.6,2457.3,3.25549]
[1727826605191,4.10186628,2457.6,2457.1,7.33986]
[1727826605397,0.84665628,2457.5,2457.1,7.33986]
[1727826605772,2.00619676,2457.6,2457.2,3.33700738]
[1727826606114,0.84665628,2457.6,2457.3,3.25557]
[1727826606399,0.84665628,2457.6,2457.2,3.33700738]
[1727826607280,4.89884628,2457.7,2457.2,3.33700738]
[1727826608872,0.84665628,2457.7,2457.6,3.2552]
[1727826609075,9.51138295,2458.1,2457.2,3.25572]
[1727826609076,9.02375628,2458.1,2457.7,3.25499]
[1727826609273,0.84665628,2458.3,2458.0,3.25467]
[1727826609509,1.64375628,2458.4,2458.0,3.25467]
[1727826609815,4.89796628,2458.4,2457.9,0.8283]
[1727826610114,0.7971,2458.4,2458.0,3.25465]
[1727826610314,15.53171628,2458.6,2458.0,3.25465]
[1727826610470,7.12052176,2458.6,2458.0,3.25465]
[1727826610697,3.25409,2458.5,2458.0,3.25465]
[1727826611003,3.25409,2458.5,2458.0,3.33600693]
[1727826611689,7.30503,2458.6,2458.0,3.2546]
[1727826612305,3.25415,2458.4,2457.9,0.8283]
[1727826612610,6.98729152,2458.4,2457.8,3.25481]
[1727826612966,6.98729152,2458.4,2457.8,6.50967]
[1727826613170,3.25415,2458.4,2457.8,6.50967]
[1727826613506,3.25469,2458.0,2457.5,3.25534]
[1727826613719,3.25483,2457.9,2457.4,4.07457]
[1727826614006,4.03696,2457.8,2457.3,3.2556]
[1727826614219,3.25509,2457.7,2457.2,4.0749]
[1727826614404,3.25509,2457.7,2457.0,4.0751]
[1727826614405,3.61229872,2457.7,2457.0,4.0751]
[1727826614586,6.86743872,2457.7,2457.1,3.25577]
[1727826614799,3.61229872,2457.7,2457.1,3.25577]
[1727826615000,3.25521,2457.6,2457.1,3.25577]